bitfinex/quotes_ETHUSD_20251224
["timestamp","ask_amount","ask_price","bid_price","bid_amount"]
[1766590356845,0.55004265,2920.7,2920.1,1.00370647]
[1766590357168,0.04279795,2920.7,2920.1,1.00370647]
[1766590357662,0.79678785,2920.8,2920.1,1.00370647]
[1766590357832,0.04279795,2920.7,2920.1,1.00370647]
[1766590358459,0.04279795,2920.7,2920.1,0.9865]
[1766590359447,3.46669384,2920.7,2920.1,0.9865]
[1766590360038,0.001,2921.2,2920.2,1.02074422]
[1766590360267,0.001,2921.2,2920.4,0.9865]
[1766590360578,0.001,2921.2,2919.5,10.13043439]
[1766590360579,0.09877552,2920.9,2920.0,0.9865]
[1766590360738,0.04279649,2920.8,2920.2,0.9865]
[1766590360933,0.04279649,2920.8,2920.1,0.02580339]
[1766590360934,0.09877552,2920.7,2919.9,1.01230339]
[1766590361138,0.04279942,2920.6,2919.9,1.01230339]
[1766590361585,0.04279649,2920.8,2920.0,0.9865]
[1766590361738,0.35651876,2920.7,2920.1,0.02580707]
[1766590361938,0.04279942,2920.6,2920.1,0.02580707]
[1766590362145,0.35651876,2920.7,2920.1,1.01230707]
[1766590362380,0.04279356,2921.0,2920.1,1.01230707]
[1766590362688,0.001,2920.7,2920.1,1.01230707]
[1766590362839,0.001,2920.7,2920.2,0.9865]
[1766590363044,0.001,2920.7,2919.8,4.27686509]
[1766590363301,0.001,2920.7,2919.9,4.4370758]
[1766590363495,0.001,2920.7,2920.0,0.9865]
[1766590364161,3.52105397,2922.1,2920.3,0.9865]
[1766590364340,3.42285042,2921.6,2920.5,0.9865]
[1766590364548,0.01700556,2921.5,2920.7,0.9865]
[1766590364851,0.01700556,2921.5,2920.8,1.02073719]
[1766590365146,3.52147854,2921.7,2920.8,4.44443813]
[1766590365147,0.01700556,2921.6,2920.8,4.44443813]
[1766590365354,0.36915341,2921.6,2920.9,0.9865]
[1766590365676,0.35214785,2921.6,2921.0,0.03423485]
[1766590365871,0.35214785,2921.6,2920.6,0.852]
[1766590365872,0.01700556,2921.5,2920.6,0.852]
[1766590366059,0.01700556,2921.5,2920.7,1.02073836]
[1766590366253,0.09877552,2921.4,2920.6,0.03423953]
[1766590366454,0.01700556,2921.3,2920.5,0.03424071]
[1766590366655,0.09877552,2921.2,2920.5,0.03424071]
[1766590366854,0.37090732,2921.1,2920.5,0.03424071]
[1766590367359,3.52159484,2921.6,2920.6,0.9865]
[1766590367360,3.52160126,2921.6,2920.6,0.9865]
[1766590367564,0.01700556,2921.5,2920.8,0.9865]
[1766590368364,3.52135032,2921.8,2920.9,0.88623602]
[1766590368566,0.35213503,2921.7,2921.1,0.9865]
[1766590368871,0.01700556,2921.6,2921.0,0.852]
[1766590369073,0.01700556,2921.9,2921.1,1.02073367]
[1766590369256,3.52111837,2922.0,2921.1,1.02073367]
[1766590369592,6.94346122,2922.0,2921.1,1.02073367]
[1766590369880,0.69434612,2921.9,2921.1,1.02073367]
[1766590370067,3.53797744,2922.1,2921.3,0.9865]
[1766590370268,3.43920192,2922.1,2921.3,0.9865]
[1766590370469,3.43920192,2922.1,2921.4,0.03423016]
[1766590370668,3.53797744,2922.1,2921.4,0.03423016]
[1766590371171,0.43899774,2922.0,2921.4,0.03423016]
[1766590371374,0.01700556,2921.9,2921.4,0.03423016]
[1766590371887,0.01700556,2921.9,2921.4,0.9865]
[1766590372979,3.43947039,2921.9,2921.4,0.9865]
[1766590373170,3.53824591,2921.9,2921.4,0.9865]
[1766590373479,0.39782437,2921.8,2921.4,0.9865]
[1766590373682,0.01700556,2921.8,2921.4,0.9865]
[1766590373868,0.01700556,2921.9,2921.4,0.9865]
[1766590374071,3.42205991,2922.3,2921.1,3.4575593]
[1766590374269,1.82167344,2924.3,2913.0,2.37519069]
[1766590374270,0.09877552,2923.7,2921.6,0.9865]
[1766590374449,0.35189821,2923.6,2921.9,0.9865]
[1766590374777,0.9014,2923.4,2922.3,0.9865]
[1766590374982,0.9014,2923.4,2922.4,0.852]
[1766590375167,0.44207865,2923.3,2922.6,0.9865]
[1766590375373,0.003,2923.9,2922.8,0.9865]
[1766590375688,3.41924312,2924.7,2922.2,13.688317]
[1766590375689,0.003,2925.1,2923.9,0.9865]
[1766590375979,0.003,2925.1,2924.1,0.9865]
[1766590376183,0.003,2925.1,2924.3,0.9865]
[1766590376358,0.9014,2925.0,2924.4,0.88619504]
[1766590376550,0.9014,2925.0,2924.5,0.852]
[1766590376961,3.4189203,2924.9,2924.5,0.852]
[1766590377184,6.8378406,2924.9,2923.9,0.03420089]
[1766590377368,6.8378406,2924.9,2923.4,3.42056899]
[1766590377369,0.9014,2924.7,2923.3,0.9865]
[1766590377574,0.9014,2924.7,2923.4,0.88620674]
[1766590377888,0.9014,2924.7,2922.9,0.9865]
[1766590378064,0.09877552,2924.5,2923.0,0.03421142]
[1766590378259,0.09877552,2924.5,2922.9,0.9865]
[1766590378260,0.9014,2924.4,2922.9,0.9865]
[1766590378459,0.9014,2924.2,2923.0,0.88621142]
[1766590378991,0.9014,2923.8,2923.0,0.03421142]
[1766590379149,2.01756688,2923.7,2922.9,0.852]
[1766590379551,0.9014,2923.6,2922.5,1.02071727]
[1766590379770,0.9014,2923.6,2922.6,0.8862161]
[1766590379970,1.11616688,2923.7,2922.7,0.9865]
[1766590379971,0.20175669,2923.5,2922.7,0.9865]
[1766590380171,0.20175669,2923.5,2922.8,0.03421376]
[1766590380593,0.20175669,2923.5,2922.8,1.02071376]
[1766590380780,3.41981624,2924.2,2923.1,4.40750575]
[1766590380962,3.41960999,2924.4,2923.2,1.87170908]
[1766590380963,3.41950485,2924.4,2923.2,1.87170908]
[1766590381159,0.77402995,2924.3,2923.2,5.2925925]
[1766590381360,0.77402995,2924.3,2923.2,1.87170908]
[1766590381657,0.9537,2924.2,2923.2,1.87170908]
[1766590381989,0.9537,2924.0,2922.8,0.9051]
[1766590382185,0.9537,2924.0,2922.4,0.03421845]
[1766590382186,0.18047,2923.9,2922.9,0.93931259]
[1766590383086,6.84041316,2923.8,2922.9,0.93931259]
[1766590383256,11.21431974,2923.8,2922.8,0.03421376]
[1766590383459,0.9537,2923.7,2922.8,0.03421376]
[1766590383662,0.9537,2923.5,2922.8,0.03421376]
[1766590384391,0.9537,2923.5,2922.6,0.0342161]
[1766590384776,0.9537,2923.5,2922.5,0.9051]
[1766590385188,0.9537,2923.3,2922.1,0.851]
[1766590385394,1.12157237,2923.2,2922.3,3.42188549]
[1766590385690,3.42067455,2923.4,2922.4,0.03421845]
[1766590385691,0.09877552,2923.1,2922.4,0.03421845]
[1766590385861,0.09877552,2923.1,2922.1,3.42213515]
[1766590385862,0.9537,2923.1,2922.1,3.42213515]
[1766590386191,0.09877552,2923.7,2922.6,0.9051]
[1766590386494,0.72182209,2923.7,2922.8,0.9051]
[1766590386791,3.51845682,2924.3,2923.0,0.9051]
[1766590387094,3.51845682,2924.3,2922.6,1.625852]
[1766590387095,3.5186739,2924.1,2923.1,0.9051]
[1766590387287,0.09877552,2923.9,2923.1,0.9051]
[1766590387589,0.79910478,2923.9,2923.3,0.9051]
[1766590387788,0.09877552,2924.2,2923.4,0.93930674]
[1766590387991,0.09877552,2924.2,2923.4,0.9051]
[1766590388781,0.09877552,2924.2,2923.1,0.851]
[1766590388983,0.09877552,2924.0,2923.1,0.851]
[1766590389319,0.09877552,2924.2,2923.2,0.93930908]
[1766590389620,3.41967461,2924.3,2923.2,0.93930908]
[1766590389621,0.851,2924.7,2923.4,0.9051]
[1766590389818,4.27021505,2924.7,2923.6,0.9051]
[1766590389973,0.851,2924.7,2923.8,0.9051]
[1766590390305,0.001,2924.9,2924.0,0.9051]
[1766590390599,0.001,2924.9,2924.1,0.03419855]
[1766590390600,0.09977552,2924.9,2924.1,0.03419855]
[1766590390903,6.93771473,2924.9,2924.1,0.03419855]
[1766590391074,0.77887147,2924.8,2924.1,0.03419855]
[1766590391402,4.19792158,2924.8,2924.1,0.93929855]
[1766590391768,0.77887147,2924.8,2924.2,0.9051]
[1766590392089,0.001,2924.9,2924.4,0.9051]
[1766590392604,1.8047,2925.5,2924.5,0.93929387]
[1766590392605,0.851,2925.5,2924.5,0.93929387]
[1766590392805,0.09877552,2926.2,2924.5,0.93929387]
[1766590392806,0.09877552,2925.9,2924.7,0.9051]
[1766590393114,6.83532114,2926.0,2924.9,0.9051]
[1766590393285,7.78873638,2926.1,2924.9,0.9051]
[1766590393484,0.77887364,2926.0,2924.9,0.9051]
[1766590393682,0.77887364,2926.0,2924.4,0.9051]
[1766590393683,0.9537,2925.9,2924.4,0.9051]
[1766590393987,0.87764916,2926.0,2924.4,0.9051]
[1766590393988,1.05247552,2925.6,2924.5,0.03419387]
[1766590394188,0.09877552,2925.6,2924.6,0.9051]
[1766590394389,0.94977552,2925.8,2924.8,0.9051]
[1766590394582,0.94977552,2925.8,2925.0,0.9051]
[1766590394903,1.90347552,2925.8,2924.5,0.9051]
[1766590395197,6.8364382,2925.5,2924.6,0.03419271]
[1766590395400,0.9537,2925.3,2924.0,0.9051]
[1766590395588,0.9537,2925.1,2924.1,0.03419855]
[1766590396513,0.24045477,2925.7,2924.5,0.9051]
[1766590396514,3.41811548,2925.6,2924.5,0.9051]
[1766590396808,3.65849248,2925.7,2924.7,0.9051]
[1766590396978,3.65849248,2925.7,2924.8,0.03419037]
[1766590397181,0.24045477,2925.7,2924.9,3.4189203]
[1766590397381,4.37102959,2926.3,2925.0,0.93928803]
[1766590397581,3.41731252,2926.3,2925.0,0.93928803]
[1766590397818,4.26819928,2926.4,2925.2,0.9051]
[1766590398001,3.41696745,2926.6,2925.4,0.9051]
[1766590398002,3.41693432,2926.6,2925.4,0.9051]
[1766590398310,0.001,2926.3,2925.6,0.9051]
[1766590398510,0.001,2926.3,2925.7,0.03417985]
[1766590398714,0.22626443,2926.3,2925.7,0.03417985]
[1766590399225,4.37098462,2926.3,2925.7,0.03417985]
[1766590399523,0.9537,2926.2,2925.2,3.4527083]
[1766590399685,7.68556924,2926.3,2925.3,0.9051]
[1766590399886,7.68556924,2926.3,2924.9,0.9051]
[1766590399887,0.9537,2926.1,2924.9,0.9051]
[1766590400112,0.9537,2926.1,2925.1,3.4186404]
[1766590400333,0.34172846,2926.2,2925.4,0.9051]
[1766590400493,0.20942151,2926.8,2925.8,0.9051]
[1766590400687,0.20942151,2926.8,2926.0,0.9051]
[1766590400688,2.151e-05,2926.8,2926.0,0.9051]
[1766590400886,2.151e-05,2926.8,2925.9,0.88517751]
[1766590400887,2.151e-05,2926.8,2926.2,0.9051]
[1766590401216,2.151e-05,2926.8,2926.3,3.41728462]
[1766590401414,2.151e-05,2926.8,2926.3,4.35655746]
[1766590401581,2.151e-05,2926.8,2926.4,0.9051]
[1766590401785,0.851,2928.0,2926.6,0.9051]
[1766590402091,1.05247552,2926.5,2925.3,3.41837485]
[1766590402300,1.05247552,2927.0,2925.7,0.9051]
[1766590402620,1.05247552,2927.0,2925.7,4.32301102]
[1766590402621,1.05247552,2926.8,2925.7,4.32301102]
[1766590402782,0.94977552,2927.4,2925.7,4.32301102]
[1766590402783,0.09877552,2927.4,2925.8,0.93927868]
[1766590402983,0.13294369,2927.3,2926.3,0.9051]
[1766590403183,6.83246788,2927.2,2925.7,3.41788442]
[1766590403515,1.05247552,2926.9,2925.8,5.20805161]
[1766590403717,0.03416817,2926.8,2925.8,1.79027868]
[1766590403917,0.88516817,2927.0,2925.9,0.9051]
[1766590404216,0.17758549,2926.9,2925.8,0.9051]
[1766590404581,0.17758549,2926.9,2925.9,0.9051]
[1766590404786,0.17758549,2926.9,2926.1,0.9051]
[1766590405211,0.03416817,2927.0,2926.2,0.03417401]
[1766590405418,0.03416817,2927.0,2924.6,0.09877552]
[1766590405419,7.8856437,2926.9,2925.7,0.9051]
[1766590405623,1.05247552,2926.7,2925.3,0.9051]
[1766590405927,0.9537,2926.5,2925.4,0.92219985]
[1766590406109,0.04271459,2926.4,2925.4,0.92219985]
[1766590406489,0.18474146,2926.3,2925.4,0.01710453]
[1766590406692,0.04271751,2926.2,2925.4,0.01710453]
[1766590407106,0.9537,2926.4,2925.4,0.01710453]
[1766590407107,1.8047,2926.4,2925.4,0.01710453]
[1766590407290,0.04271605,2926.3,2925.3,0.001]
[1766590407622,7.83108891,2926.3,2925.3,0.001]
[1766590407820,7.78837286,2926.3,2925.3,0.001]
[1766590408026,0.9066548,2926.2,2925.3,0.01810745]
[1766590408323,0.86393729,2926.2,2925.3,0.92320745]
[1766590408490,0.86393729,2926.2,2925.3,0.9061]
[1766590409424,3.41751819,2926.1,2925.4,0.01710803]
[1766590409624,0.90795265,2926.1,2925.4,0.01710803]
[1766590409925,4.3703332,2926.9,2925.5,0.9051]
[1766590410223,0.0427073,2926.9,2925.7,0.9051]
[1766590410393,0.0427073,2926.9,2925.6,0.01709635]
[1766590410394,1.05247552,2927.8,2925.9,0.9051]
[1766590410589,1.05247552,2927.8,2926.1,0.9051]
[1766590410590,0.9537,2927.6,2926.1,0.9051]
[1766590410790,0.9537,2927.4,2926.1,1.08061]
[1766590411004,0.56900315,2927.5,2926.2,0.01708]
[1766590411005,0.9537,2927.3,2926.2,0.01708]
[1766590411251,0.9174,2927.1,2926.2,0.01708]
[1766590411405,0.9174,2927.1,2925.6,0.9017]
[1766590411406,7.75080166,2926.8,2925.7,0.01708234]
[1766590411604,0.96011021,2926.7,2925.7,0.01708234]
[1766590412146,0.9174,2926.6,2925.4,3.41831324]
[1766590412335,0.22382415,2926.5,2925.5,3.41818453]
[1766590412533,0.22382415,2926.5,2925.3,0.851]
[1766590412722,0.22382415,2926.5,2925.4,0.01710336]
[1766590413038,0.04271459,2926.4,2925.6,3.41801275]
[1766590413259,0.04271459,2926.4,2925.7,0.01710044]
[1766590413542,0.9174,2926.3,2925.5,0.01710044]
[1766590413747,6.87752031,2926.2,2925.3,0.01810394]
[1766590413950,0.77949203,2926.1,2925.3,0.01810394]
[1766590414111,0.77949203,2926.1,2925.3,0.001]
[1766590414306,1.69689203,2926.1,2925.3,0.001]
[1766590414510,0.96012043,2926.0,2925.0,0.01711154]
[1766590414749,0.17396125,2925.9,2925.1,0.91881855]
[1766590415751,3.59175816,2925.9,2925.1,0.9017]
[1766590415931,0.17396125,2925.9,2925.1,0.9017]
[1766590416136,7.00948461,2925.9,2924.7,0.9017]
[1766590416325,0.9174,2925.7,2925.0,0.001]
[1766590416527,0.89372627,2925.6,2925.0,0.001]
[1766590417172,0.851,2925.7,2925.0,0.001]
[1766590417310,0.9627,2925.6,2925.0,0.001]
[1766590417506,0.22409773,2925.5,2925.0,0.001]
[1766590417815,3.64238569,2925.5,2925.0,0.001]
[1766590418640,0.22409773,2925.5,2925.0,0.001]
[1766590418845,8.02324407,2925.5,2924.5,0.01712206]
[1766590419048,0.9627,2925.4,2924.4,0.01713141]
[1766590419258,7.01781634,2925.5,2924.5,0.01713492]
[1766590419259,0.9627,2925.2,2924.5,0.01713492]
[1766590419552,1.00543358,2925.1,2924.1,0.01713492]
[1766590419764,3.41880341,2925.0,2924.1,0.01713492]
[1766590419923,1.0054365,2924.9,2924.1,0.01713492]
[1766590420118,0.851,2925.1,2924.1,3.41985568]
[1766590420356,0.04272627,2925.6,2924.3,0.942]
[1766590420523,0.851,2925.5,2924.4,0.95913258]
[1766590420724,0.9627,2925.8,2924.4,0.95913258]
[1766590420725,0.04272919,2925.4,2924.4,0.95913258]
[1766590420935,3.46083985,2925.6,2924.4,0.95913258]
[1766590421140,4.33009924,2925.6,2924.4,0.95913258]
[1766590421620,3.51597179,2926.4,2924.4,0.95913258]
[1766590421621,4.3801014,2926.2,2924.4,0.95913258]
[1766590421938,4.3801014,2926.2,2924.2,0.849]
[1766590421939,3.46032549,2926.1,2924.6,0.942]
[1766590422138,0.04271897,2926.1,2924.6,0.942]
[1766590422314,3.46028881,2926.1,2924.6,0.942]
[1766590422516,0.91184973,2926.1,2924.8,0.942]
[1766590422749,0.04271897,2926.1,2924.9,0.942]
[1766590422950,3.46023763,2926.1,2924.9,0.942]
[1766590423249,0.04271897,2926.1,2925.0,0.95911621]
[1766590423650,0.9627,2926.2,2925.0,0.95911621]
[1766590423824,0.9627,2926.0,2925.1,0.01711329]
[1766590424023,0.04272189,2925.9,2925.0,0.01711446]
[1766590424251,0.04272189,2925.9,2925.0,3.43591674]
[1766590424450,0.9627,2925.8,2925.0,0.01711446]
[1766590424660,1.191067,2925.7,2924.7,0.01711855]
[1766590424829,1.00542481,2925.7,2924.7,0.01711855]
[1766590425154,0.04272043,2926.0,2925.1,0.942]
[1766590425349,0.04272043,2926.0,2925.2,0.01711387]
[1766590425850,0.04272043,2926.0,2925.3,3.4184528]
[1766590426033,0.04272043,2926.0,2925.4,0.01711037]
[1766590426232,0.9627,2926.6,2925.5,0.942]
[1766590426452,0.002,2926.7,2925.7,0.942]
[1766590426653,0.002,2927.3,2925.9,0.942]
[1766590426956,0.002,2927.3,2925.8,0.88417868]
[1766590426957,0.9627,2927.1,2926.0,0.03417634]
[1766590427151,0.9627,2927.1,2925.8,0.85]
[1766590427152,0.98832175,2927.0,2925.9,0.97617751]
[1766590427353,0.9627,2927.0,2926.0,0.18261775]
[1766590427558,0.02562175,2926.9,2926.1,0.03417518]
[1766590427728,0.98832175,2926.9,2926.2,0.03417401]
[1766590427930,7.82154963,2926.9,2925.9,0.03417751]
[1766590428146,0.78215496,2926.8,2925.9,0.03417751]
[1766590428350,0.02562175,2926.7,2925.7,0.03417985]
[1766590428751,0.02562175,2926.7,2925.7,3.45216286]
[1766590429025,0.9627,2926.6,2925.7,0.03417985]
[1766590429229,0.9627,2926.6,2924.9,1.04077552]
[1766590429230,0.9627,2926.4,2925.5,0.03418219]
[1766590429455,0.9627,2926.2,2925.3,0.03418452]
[1766590429632,0.02562175,2926.1,2925.3,0.34528379]
[1766590429833,0.02562175,2926.1,2925.4,0.03418335]
[1766590430040,0.9627,2926.0,2925.3,0.03418452]
[1766590430239,0.9627,2926.0,2924.9,0.942]
[1766590430240,0.55131019,2925.9,2925.0,3.45290678]
[1766590430439,0.55131019,2925.9,2925.1,3.41868072]
[1766590430665,0.55131019,2925.9,2925.2,0.03418569]
[1766590430864,0.55131019,2925.9,2924.9,4.3608834]
[1766590431088,0.9627,2925.8,2924.5,0.001]
[1766590431358,0.9627,2925.8,2924.5,0.943]
[1766590431529,3.41742224,2926.2,2924.7,0.942]
[1766590431530,0.851,2926.0,2924.7,0.942]
[1766590431727,0.35161978,2926.1,2924.9,0.942]
[1766590431941,0.87662175,2926.2,2925.0,0.97618803]
[1766590431942,0.02562175,2926.0,2925.0,0.97618803]
[1766590432230,0.02562175,2926.1,2925.1,3.41866359]
[1766590432431,0.02562175,2926.1,2925.2,0.03418569]
[1766590433477,0.9627,2926.8,2925.3,0.942]
[1766590433665,4.38083019,2927.3,2925.5,0.942]
[1766590433829,1.48788302,2927.3,2925.7,0.942]
[1766590434031,0.87662175,2927.2,2926.0,6.83526998]
[1766590434230,0.02562175,2927.2,2926.1,0.97617518]
[1766590434457,0.851,2927.2,2926.1,0.97617518]
[1766590434664,0.9647,2927.3,2926.1,0.97617518]
[1766590434858,4.406462,2927.3,2926.1,0.97617518]
[1766590435063,0.02762175,2927.3,2926.3,0.942]
[1766590435263,0.002,2927.3,2926.4,0.03417167]
[1766590435764,0.02762175,2927.3,2926.2,0.78114452]
[1766590436064,0.02762175,2927.3,2926.3,0.03417284]
[1766590436252,0.02762175,2927.3,2926.4,4.35916785]
[1766590436455,0.002,2927.3,2926.5,0.47350458]
[1766590437293,0.02762175,2927.3,2926.5,0.47350458]
[1766590437454,0.002,2927.3,2926.5,1.41550458]
[1766590437656,0.9627,2928.3,2926.6,0.942]
[1766590437852,0.98832175,2928.2,2926.8,0.942]
[1766590438088,0.98832175,2928.2,2926.9,0.88316584]
[1766590438276,0.851,2928.4,2927.2,0.942]
[1766590438476,0.02562175,2928.3,2927.3,0.03416117]
[1766590438788,0.98832175,2928.5,2927.3,0.97616117]
[1766590438962,0.98832175,2928.5,2927.3,0.942]
[1766590439162,0.9627,2928.3,2927.3,0.03416117]
[1766590439460,0.9627,2928.1,2927.1,0.942]
[1766590439659,0.02562175,2928.3,2927.3,0.942]
[1766590440277,0.9627,2929.5,2927.7,0.942]
[1766590440456,2.0,2929.0,2927.8,0.13293085]
[1766590440656,0.17835772,2930.9,2930.7,0.1782995]
[1766590440895,3.41047758,2932.2,2928.5,6.51035609]
[1766590440896,0.9627,2931.0,2928.5,6.51035609]
[1766590441057,0.9627,2930.4,2928.6,0.849]
[1766590441256,0.09877552,2930.5,2928.6,0.849]
[1766590441257,0.09877552,2930.1,2928.6,0.849]
[1766590441457,0.85,2930.0,2928.6,0.849]
[1766590441769,0.9284,2929.9,2928.7,0.03414484]
[1766590442098,0.9284,2929.9,2928.4,0.849]
[1766590442304,0.9284,2929.7,2928.5,0.03414717]
[1766590442603,0.9284,2929.7,2928.3,0.0341495]
[1766590443489,0.9284,2929.7,2928.2,7.35935609]
[1766590443691,0.9284,2931.7,2929.4,6.51035609]
[1766590443895,0.9284,2931.7,2929.5,0.88313551]
[1766590444056,0.9284,2931.7,2929.5,0.98191103]
[1766590444395,0.9284,2931.6,2929.8,10.23960678]
[1766590444613,0.9284,2931.4,2929.9,0.03413085]
[1766590445207,0.9284,2931.4,2930.0,0.848]
[1766590445513,0.9284,2931.4,2930.1,0.03412852]
[1766590446182,0.9284,2931.2,2930.1,0.03412852]
[1766590446384,0.9284,2931.1,2928.7,0.09877552]
[1766590446636,0.9284,2931.0,2928.7,0.09877552]
[1766590446932,0.9284,2930.8,2929.2,0.09877552]
[1766590447230,0.849,2930.9,2928.7,3.41438998]
[1766590447231,0.9284,2930.6,2928.7,3.41438998]
[1766590447514,0.9284,2930.6,2928.5,3.41470599]
[1766590447515,0.9284,2930.6,2928.8,3.44847877]
[1766590447713,0.9284,2930.6,2928.8,0.77110597]
[1766590447912,0.9284,2930.6,2928.8,0.03414367]
[1766590448213,10.23716088,2930.5,2928.7,0.03414484]
[1766590448404,0.9284,2930.4,2928.6,0.848]
[1766590448606,0.9284,2930.3,2928.7,0.03414484]
[1766590448809,0.9284,2930.0,2928.5,0.848]
[1766590449111,1.21533161,2930.3,2928.6,0.034146]
[1766590449112,0.9284,2929.8,2928.6,0.034146]
[1766590449888,0.9284,2929.8,2928.7,0.03414484]
[1766590450116,0.9284,2929.6,2928.5,0.03414717]
[1766590450321,0.9284,2929.4,2927.7,0.0341565]
[1766590450624,0.9284,2929.4,2928.2,3.41503916]
[1766590450786,0.9284,2929.4,2927.9,0.848]
[1766590450983,0.9284,2929.3,2928.0,0.034153]
[1766590451188,0.9284,2929.1,2928.0,0.034153]
[1766590451825,0.9284,2929.1,2927.7,0.0341565]
[1766590452027,0.9284,2929.1,2927.8,3.4154216]
[1766590452190,0.9284,2929.0,2927.6,0.847]
[1766590452395,0.9284,2928.8,2927.7,0.0341565]
[1766590452614,0.9284,2928.6,2927.7,0.0341565]
[1766590452921,0.9284,2929.2,2927.7,0.0341565]
[1766590453091,0.9284,2929.2,2928.8,0.001]
[1766590453291,6.8279134,2929.2,2928.8,0.001]
[1766590453491,0.9284,2929.0,2928.2,0.03415067]
[1766590453698,0.9284,2929.0,2928.0,0.847]
[1766590453699,3.41365528,2929.5,2928.1,0.03415183]
[1766590453891,0.9284,2929.5,2928.1,0.03415183]
[1766590454306,4.34202678,2929.5,2928.2,6.83013454]
[1766590454623,0.849,2929.8,2928.2,6.83013454]
[1766590454624,0.9284,2929.4,2928.3,0.0341495]
[1766590454811,0.9284,2929.4,2928.4,1.02793513]
[1766590455236,0.9284,2929.4,2928.3,0.847]
[1766590455522,1.02717552,2929.2,2927.6,3.41665123]
[1766590455688,0.9284,2929.0,2927.8,3.41553138]
[1766590455887,0.9284,2928.8,2928.1,3.41518206]
[1766590456091,0.9284,2929.3,2928.2,0.03415067]
[1766590456388,6.82715548,2929.5,2927.8,1.53364469]
[1766590456389,0.9284,2929.1,2927.8,1.53364469]
[1766590456624,0.9284,2928.9,2928.2,3.41496123]
[1766590456812,0.9284,2929.4,2928.3,0.0341495]
[1766590457106,0.9284,2929.4,2928.4,0.6864178]
[1766590457107,0.0341495,2929.3,2928.4,0.6864178]
[1766590457321,0.0341495,2929.3,2928.5,0.03414717]
[1766590457648,0.9284,2929.3,2928.6,0.034146]
[1766590457944,0.9284,2929.3,2928.5,0.03414717]
[1766590458639,0.9284,2929.3,2928.5,3.4488365]
[1766590458837,0.9284,2929.2,2928.0,3.41523323]
[1766590459035,0.9284,2929.0,2928.3,0.847]
[1766590459351,0.9284,2929.0,2928.4,0.03414834]
[1766590460440,0.9284,2929.0,2928.1,0.847]
[1766590460441,0.9284,2929.0,2928.5,0.03414717]
[1766590460643,0.9284,2928.9,2928.2,0.03415067]
[1766590461218,0.9284,2928.9,2928.1,0.03415183]
[1766590461413,0.9284,2928.8,2928.1,0.03415183]
[1766590461734,0.9284,2928.8,2927.8,3.41543269]
[1766590461735,0.9625495,2928.8,2927.8,3.41543269]
[1766590461941,0.9625495,2928.8,2927.7,3.41563714]
[1766590461942,1e-08,2928.8,2927.9,0.03415417]
[1766590462125,0.9284,2929.4,2928.5,6.82941487]
[1766590462325,0.9284,2929.0,2927.6,0.001]
[1766590462642,0.9284,2928.6,2927.9,4.2623991]
[1766590462820,0.9284,2928.6,2928.0,0.80194627]
[1766590463022,0.9284,2929.2,2928.0,0.034153]
[1766590463244,0.9284,2929.2,2927.9,10.24623534]
[1766590463427,0.9284,2929.0,2928.0,0.881153]
[1766590463620,0.9284,2928.8,2927.8,3.41548149]
[1766590463818,0.9284,2928.8,2927.9,3.41541159]
[1766590464014,0.9284,2928.8,2928.0,1.22269416]
[1766590464435,0.09877552,2929.1,2928.0,1.22269416]
[1766590464640,0.96254601,2929.0,2928.1,3.4151839]
[1766590464840,0.96254601,2929.0,2928.2,0.03415067]
[1766590465041,0.96254601,2929.0,2928.1,0.847]
[1766590465042,1.02717552,2928.8,2928.1,0.847]
[1766590465243,0.9284,2928.6,2928.2,0.03415067]
[1766590465420,0.9284,2928.6,2927.7,0.8811565]
[1766590465623,0.9284,2928.2,2927.6,0.001]
[1766590466350,0.9284,2928.0,2926.4,3.41714237]
[1766590466551,0.9284,2927.8,2926.7,3.41678795]
[1766590466752,0.9284,2927.8,2926.8,0.01710217]
[1766590467375,4.34401263,2927.8,2926.8,0.01710217]
[1766590467574,4.34401263,2927.8,2926.5,0.34171424]
[1766590467575,0.9284,2927.5,2926.5,3.75875402]
[1766590467878,0.9284,2927.3,2926.6,0.847]
[1766590468048,0.9284,2927.3,2926.7,0.01711092]
[1766590468377,0.9284,2927.3,2926.8,0.847]
[1766590468587,0.9284,2927.3,2926.9,0.01710625]
[1766590468746,0.97110292,2927.2,2926.7,0.847]
[1766590468944,0.97110292,2927.2,2926.6,0.847]
[1766590469153,0.9284,2927.2,2925.6,6.21156535]
[1766590469463,0.09877552,2926.8,2925.9,3.41768378]
[1766590469665,0.9284,2926.7,2926.0,0.847]
[1766590469876,0.9284,2926.5,2925.7,0.62115654]
[1766590470073,0.9284,2926.3,2925.4,3.41928359]
[1766590470287,0.9284,2926.3,2925.4,0.848]
[1766590470703,0.9284,2926.3,2925.5,7.6834382]
[1766590470905,0.9284,2926.3,2925.6,0.76844382]
[1766590471055,0.9284,2926.3,2925.7,0.847]
[1766590471253,0.9284,2926.3,2925.6,0.76844382]
[1766590471254,3.41735859,2926.3,2925.6,0.76844382]
[1766590471462,0.9575,2926.2,2925.7,0.847]
[1766590471682,1.00021021,2926.7,2925.4,6.83762047]
[1766590471882,0.9575,2926.5,2925.8,0.847]
[1766590472053,0.9575,2926.5,2925.7,0.001]
[1766590472255,0.9575,2926.3,2925.7,0.001]
[1766590472469,0.9575,2926.4,2925.7,0.001]
[1766590473806,0.9575,2926.4,2925.7,0.848]
[1766590473973,1.0002073,2926.9,2925.8,0.847]
[1766590474319,1.05627552,2926.8,2925.9,0.847]
[1766590474528,0.9575,2926.6,2925.9,0.847]
[1766590474815,0.9575,2926.6,2925.7,0.001]
[1766590474974,1.00021313,2926.5,2925.7,0.001]
[1766590475173,0.9575,2926.3,2925.7,0.001]
[1766590476986,0.9575,2926.3,2925.8,0.68372045]
[1766590477187,3.45930371,2926.9,2925.9,0.847]
[1766590477387,3.45930371,2926.9,2925.8,0.68372045]
[1766590477388,0.9908,2926.8,2925.8,0.68372045]
[1766590477607,0.9908,2926.6,2926.0,0.847]
[1766590478908,0.9908,2927.1,2926.0,0.847]
[1766590479117,0.9908,2927.1,2926.1,6.83503638]
[1766590479314,0.9908,2927.1,2926.2,0.76820364]
[1766590479982,0.9908,2927.1,2926.3,0.847]
[1766590481107,0.9908,2927.1,2926.4,6.8343357]